Cogmind - Beta 14 *** ADVENTURER MODE // 2024.10.01 @ 08:27:45 Player: Jefffff Result: Destroyed by H-66 Slayer with Gauss Rifle Performance ------------- Evolutions (5) 2500 Regions Visited (7) 1400 Robots Destroyed (84) 420 Value Destroyed (3343) 3343 Prototype IDs (11) 220 Alien Tech Used (0) 0 Bonus (1419) 1419 TOTAL SCORE: 9302 Bonus ------- High Alert Combat Kills 176 Follower Combat Kills 1070 Registered with UFD 300 Friendly Fire -127 Cogmind --------- Core Integrity 0/1000 Matter 137/300 Energy 99/100 System Corruption 14% Temperature Hot (233) Movement Core (50) Location -5/Factory Parts ------- > --- POWER (2) -------- (None) > --- PROPULSION (7) --- (None) > --- UTILITY (5) ------ (None) > --- WEAPON (3) ------- (None) > --- INVENTORY (5) ---- Microactuators Improved Field Recycling Unit (0) Faulty Precision Rocket Launcher CPS Tube (2) Phasing Sabre Peak State ------------ > --- POWER ------------ Fission Core Light Fission Core > --- PROPULSION ------- Carbon-fiber Leg Carbon-fiber Leg Flexi-carbon Leg Flexi-carbon Leg Improved VSS Leg Myomer Leg Myomer Leg > --- UTILITY ---------- Advanced Heat Sink Advanced Heat Sink Huge Storage Unit Improved Core Shielding Improved Light Armor Plating > --- WEAPON ----------- Heavy Laser Bore Cannon Phasing Sabre > --- INVENTORY -------- Light Nuclear Core Improved Deuterium Engine Light Angular Momentum Engine Carbon-fiber Leg Carbon-fiber Leg Advanced Heat Sink Energy Well Energy Filter Microactuators Phase Shifter System Guard Long-range Tractor Beam Pulse Rifle Heavy Laser Heavy Particle Cannon KE Penetrator Bore Cannon Long-range Missile Launcher Precision Rocket Launcher Improved Plasma Cutter CPS Tube CPS Tube Maul DRS Beacon [Rating: 89] Favorites ----------- Power Light Ion Engine Engine Light Ion Engine Power Core Light Fission Core Reactor Light Antimatter Reactor Propulsion Light Treads Treads Light Treads Leg Carbon-fiber Leg Hover Unit Backup Propulsion I Utility Weapon Shielding Device Tractor Beam Storage Large Storage Unit Processor Improved Target Analyzer Protection Weapon Shielding Weapon Battle Cannon Energy Gun Particle Gun Energy Cannon Heavy Particle Cannon Ballistic Gun Assault Rifle Ballistic Cannon Battle Cannon Launcher Long-range Missile Launcher Special Weapon Junk Cannon Slashing Weapon Phasing Sabre Piercing Weapon Heavy Pick Build | -11 -10 -10 -9 -9 -6 -6 -5 ------- Run | Yrd Mat Sub Rec Scr Fac Ext Fac Slots Evolved 10 | . . . . . 8 . 2 Power 1 | . . . . . 1 . . Propulsion 5 | . . . . . 4 . 1 Utility 3 | . . . . . 2 . 1 Weapon 1 | . . . . . 1 . . Parts Attached 157 | . 14 10 . 11 15 54 53 Power 37 | . 2 1 . 4 3 14 13 Engine 29 | . 2 1 . 4 3 9 10 Core 7 | . . . . . . 4 3 Reactor 1 | . . . . . . 1 . Propulsion 60 | . 7 3 . 4 4 22 20 Treads 10 | . 2 3 . 3 1 . 1 Leg 49 | . 5 . . 1 3 22 18 Wheel . | . . . . . . . . Hover 1 | . . . . . . . 1 Flight . | . . . . . . . . Utility 32 | . 4 3 . 2 5 7 11 Device 11 | . 1 . . . 1 3 6 Storage 7 | . 3 . . 1 1 . 2 Processor 3 | . . . . . . . 3 Hackware . | . . . . . . . . Protection 11 | . . 3 . 1 3 4 . Artifact . | . . . . . . . . Weapon 28 | . 1 3 . 1 3 11 9 Energy Gun 7 | . 1 . . . . 2 4 Energy Cannon 1 | . . . . . . . 1 Ballistic Gun 3 | . . 2 . . . . 1 Ballistic Cannon 13 | . . 1 . . 3 7 2 Launcher 1 | . . . . . . . 1 Special Weapon 1 | . . . . 1 . . . Impact Weapon . | . . . . . . . . Slashing Weapon 1 | . . . . . . 1 . Piercing Weapon 1 | . . . . . . 1 . Special Melee Weapon . | . . . . . . . . Unidentified Prototypes 1 | . . . . 1 . . . Parts Lost 57 | . . 4 . . 1 19 33 Power 14 | . . 1 . . . 6 7 Propulsion 20 | . . 1 . . . 6 13 Utility 11 | . . 1 . . 1 3 6 Weapon 12 | . . 1 . . . 4 7 Highest Loss Streak 25 | . . 2 . . 1 10 25 To Critical Strikes 1 | . . . . . . 1 . Average Slot Usage (%) 94 | . 96 99 100 94 85 90 94 Engine 11 | . 14 13 14 14 13 5 3 Core 1 | . . . . . . 4 6 Treads 15 | . . 14 28 27 13 3 . Leg 14 | . 25 13 . . 15 29 38 Device 4 | . 13 1 . . 6 5 8 Storage 11 | . 14 14 14 14 8 7 5 Protection 10 | . . 12 14 14 9 10 8 Energy Gun 4 | . 14 9 . . . 3 4 Ballistic Gun 7 | . 14 14 14 8 . . . Ballistic Cannon 7 | . . 4 14 8 13 9 4 Special Weapon 2 | . . . . 5 2 . . Peak Build Rating 89 | 6 9 9 9 24 43 77 89 Average Rating 27 | 6 8 8 9 16 38 57 79 On Entrance 22 | 6 6 9 9 9 24 41 77 Naked Turns 12 | . . . . . . . 12 Heaviest Build 126 | 11 30 30 29 62 87 91 126 Greatest Support 135 | 20 20 40 40 43 63 115 135 Greatest Overweight (x) 20 | . 2 1 . 1 2 20 1 Average Overweight (x) . | . 1 . . . 1 . . Largest Inventory Capacity 25 | 8 25 15 15 20 20 20 25 Average Capacity 18 | 8 14 15 15 17 20 20 24 Most Carried 25 | 6 15 15 10 20 19 20 25 Average Carried 16 | 6 13 11 10 16 13 18 23 Final Capacity 20 | 8 15 15 15 20 20 20 5 Final Carried 20 | 6 15 10 10 20 17 20 5 Class Distribution -------------------- 50% | Mutant 24% | Derelict-Mutant 11% | Scavenger-Mutant 6% | Commander-Mutant 5% | Derelict-Tank Dominant Class ---------------- Mutant | -10/Materials Mutant | -10/Subcaves Mutant | -9/Recycling Derelict-Mutant | -9/Scraptown Derelict-Tank | -6/Factory Scavenger-Mutant | -6/Extension Scavenger-Mutant | -5/Factory Resources | -11 -10 -10 -9 -9 -6 -6 -5 ----------- Run | Yrd Mat Sub Rec Scr Fac Ext Fac Matter Collected 3358 | 200 175 136 95 247 357 1268 880 Remotely 667 | . 175 . . . . . 492 Salvage Created 2806 | . 322 407 . . 338 729 1010 Parts 153 | . 33 28 . . 13 27 52 Haulers Intercepted 2 | . 2 . . . . . . Recyclers Shooed 2 | . 1 . . . . . 1 Parts Field Recycled . | . . . . . . . . Retrieved Matter . | . . . . . . . . Parts Self-Destructed 14 | . . 14 . . . . . Prevented . | . . . . . . . . Kills | -11 -10 -10 -9 -9 -6 -6 -5 ------- Run | Yrd Mat Sub Rec Scr Fac Ext Fac Combat Hostiles Destroyed 66 | . 8 14 . . 9 13 22 Melee 1 | . . . . . . 1 . Guns 23 | . 8 11 . . . . 4 Cannons 33 | . . 2 . . 7 12 12 AOE 5 | . . . . . . . 5 Classes Destroyed 14 | . 4 3 . . 2 3 2 Worker 3 | . . . . . 1 . 2 Builder 5 | . . . . . 2 . 3 Hauler 2 | . 2 . . . . . . Recycler 2 | . . . . . . 2 . Operator 1 | . . . . . . 1 . Turret 2 | . . 2 . . . . . Watcher 3 | . 3 . . . . . . Swarmer 14 | . 6 5 . . . 2 1 Grunt 31 | . 2 . . . 5 9 15 Protector 1 | . . . . . . . 1 Sentry 6 | . . 2 . . 4 . . Hunter 4 | . . . . . . 2 2 Programmer 3 | . . . . . . . 3 Subdweller 7 | . . 7 . . . . . Best Kill Streak 8 | . 3 4 . . 4 2 8 Combat Bots Only 7 | . 3 4 . . 3 2 7 Max Kills in Single Turn 3 | . 1 1 . . 1 1 3 Gunslinging . | . . . . . . . . Exploded 3 | . . . . . . . 3 Melee 1 | . . . . . . 1 . Uniques/NPCs Destroyed . | . . . . . . . . Combat | -11 -10 -10 -9 -9 -6 -6 -5 -------- Run | Yrd Mat Sub Rec Scr Fac Ext Fac Hostile Shots Fired 898 | . 43 135 . . 150 208 362 Missed 281 | . 16 52 . . 65 57 91 Damage Taken 8465 | . 206 816 . . 635 2295 4513 Core 1537 | . 50 133 . . 36 305 1013 Absorbed by Shields 52 | . . . . . . 52 . Redirected to Shielding 269 | . . 50 . . 50 117 52 Ignored by Resistances 2254 | . 67 246 . . 193 573 1175 Regen/Repaired (Parts) 10 | . 10 . . . . . . Core Remaining (%) 61 | 100 . . . 26 . 59 . Volleys Fired 301 | . 35 62 . . 33 88 83 Largest 3 | . 2 2 . . 3 3 3 Hottest 171 | . 85 85 . . 126 126 171 Shots Fired 584 | . 70 110 . . 79 157 168 Gun 283 | . 70 92 . . . 24 97 Cannon 288 | . . 18 . . 67 133 70 Launcher 1 | . . . . . . . 1 Special 12 | . . . . . 12 . . Kinetic 402 | . 35 80 . . 67 133 87 Thermal 169 | . 35 30 . . . 24 80 Explosive 1 | . . . . . . . 1 Electromagnetic . | . . . . . . . . Impact 12 | . . . . . 12 . . Robot Hit Streak 21 | . 10 21 . . 15 12 20 Robot Miss Streak 6 | . 6 5 . . 1 3 4 Penetration Max 2 | . . . . . 1 2 2 Secondary Targets 2 | . 1 1 . . . . . Max Gunslinging Chain 1 | . 1 1 . . . . . Shots Hit Robots 401 | . 42 87 . . 63 84 125 Core Hits 169 | . 22 31 . . 21 33 62 Critical Kills 16 | . . . . . . 5 11 Critical Parts Destroyed 29 | . . . . . 1 10 18 Critical Strikes 62 | . . 4 . . 8 19 31 Burn 6 | . . 4 . . . . 2 Destroy 45 | . . . . . . 16 29 Blast 10 | . . . . . 7 3 . Smash 1 | . . . . . 1 . . Melee Attacks 84 | . . . . . . 77 7 Impact . | . . . . . . . . Slashing 7 | . . . . . . . 7 Piercing 77 | . . . . . . 77 . Sneak Attacks . | . . . . . . . . Combat Hostiles . | . . . . . . . . Follow-up Attacks . | . . . . . . . . Damage Inflicted 9424 | . 522 1089 . . 1992 1824 3997 Guns 3173 | . 522 809 . . . 223 1619 Cannons 4320 | . . 280 . . 1323 1436 1281 Explosions 1097 | . . . . . . . 1097 Melee 125 | . . . . . . 125 . Ramming 40 | . . . . . . 40 . Kinetic 5278 | . 178 731 . . 1323 1436 1610 Thermal 3093 | . 344 358 . . . 223 2168 Explosive 219 | . . . . . . . 219 Electromagnetic . | . . . . . . . . Impact 669 | . . . . . 669 . . Slashing . | . . . . . . . . Piercing 125 | . . . . . . 125 . Highest Corruption 14 | . . . . . . 7 14 Average Corruption 3 | . . . . . . 3 3 Corruption Purged . | . . . . . . . . Corruption Blocked . | . . . . . . . . Effects 43 | . . . . . . 38 5 Message Errors 9 | . . . . . . 8 1 Matter Fused 12 | . . . . . . 11 1 Heat Flow Errors 7 | . . . . . . 5 2 Energy Discharges 7 | . . . . . . 7 . Data Loss (minor) 4 | . . . . . . 4 . Data Loss (major) 1 | . . . . . . . 1 Misfires 3 | . . . . . . 3 . Overload Shots . | . . . . . . . . Overflow Damage 371 | . . 17 . . 145 17 192 Projectiles 185 | . . 17 . . 145 7 16 Explosions 176 | . . . . . . . 176 Melee 10 | . . . . . . 10 . Knockbacks 44 | . . 3 . . 6 14 21 Impact 1 | . . . . . 1 . . Kinetic 41 | . . 3 . . 5 14 19 Secondary 2 | . . . . . . . 2 Self-Inflicted Damage 271 | . . . . . . . 271 Shots 4 | . . . . . . . 4 Rammed . | . . . . . . . . Targets Rammed 1 | . . . . . . 1 . Kicked 1 | . . . . . . 1 . Crushed . | . . . . . . . . Highest Temperature 735 | . 167 26 . . 14 359 735 Average Temperature 112 | . 59 5 . . 6 86 302 Received Heat Transfer 3492 | . 63 387 . . 312 747 1983 Effects 34 | . . . . . . 6 28 Shutdowns 4 | . . . . . . 1 3 Energy Bleed 4 | . . . . . . . 4 Interference 8 | . . . . . . 5 3 Matter Decay 1 | . . . . . . . 1 Short Circuit 2 | . . . . . . . 2 Damage (minor) 3 | . . . . . . . 3 Damage (major) 10 | . . . . . . . 10 Damage (core) 2 | . . . . . . . 2 Siege Activations . | . . . . . . . . Robots Corrupted 2 | . . . . . 2 . . Combat Hostiles 2 | . . . . . 2 . . Parts Fried 2 | . . . . . 1 1 . Impact Corruptions 5 | . . . . . 4 1 . Robots Melted 1 | . . . . . . . 1 Combat Hostiles 1 | . . . . . . . 1 Parts Melted 10 | . 2 3 . . . 2 3 Heat Transferred 5654 | . 999 1147 . . . 444 3064 Parts Sabotaged . | . . . . . . . . Parts Stolen . | . . . . . . . . Parts Stripped . | . . . . . . . . Power Chain Reactions . | . . . . . . . . Alert | -11 -10 -10 -9 -9 -6 -6 -5 ------- Run | Yrd Mat Sub Rec Scr Fac Ext Fac Peak Influence 683 | . 139 . 255 . 269 365 683 Initial 86 | . . . 86 . . 57 22 Average 138 | . 25 . 140 . 99 135 312 Maximum Alert Level 2 | . . . 1 . 1 1 2 Low Security (%) 71 | 100 100 . 62 . 91 74 23 Level 1 22 | . . . 37 . 8 25 44 Level 2 6 | . . . . . . . 32 Level 3 . | . . . . . . . . Level 4 . | . . . . . . . . Level 5 . | . . . . . . . . High Security . | . . . . . . . . Max Security . | . . . . . . . . Squads Dispatched 18 | . . . . . 2 5 11 Investigation 7 | . . . . . . 4 3 Extermination 3 | . . . . . . . 3 Reinforcement 7 | . . . . . 2 1 4 Assault 1 | . . . . . . . 1 Garrison . | . . . . . . . . Intercept . | . . . . . . . . Searches Triggered . | . . . . . . . . Construction Impeded 3 | . . . . . 1 . 2 Haulers Reinforced 1 | . . . . . . . 1 Active Scanning Responses . | . . . . . . . . Cargo Convoy Interrupts . | . . . . . . . . Stealth | -11 -10 -10 -9 -9 -6 -6 -5 --------- Run | Yrd Mat Sub Rec Scr Fac Ext Fac Distress Signals 1 | . . . . . . . 1 Communications Jammed . | . . . . . . . . Distress Signals . | . . . . . . . . Times Spotted 121 | . 15 17 . . 11 36 42 Peak Tracking Total 7 | . 4 6 . . 3 5 7 Tactical Retreats 13 | . . 3 . . 1 3 6 Traps | -11 -10 -10 -9 -9 -6 -6 -5 ------- Run | Yrd Mat Sub Rec Scr Fac Ext Fac Traps Triggered 3 | . 1 . . . . 2 . Indirectly . | . . . . . . . . Trap Hack Attempts . | . . . . . . . . Triggered . | . . . . . . . . Disarmed . | . . . . . . . . Reprogrammed . | . . . . . . . . Reused . | . . . . . . . . Traps Extracted . | . . . . . . . . Installed 1 | . . . . 1 . . . Triggered 2 | . . . . . 1 1 . Most Traps Carried 1 | . . . . 1 . . . Machines | -11 -10 -10 -9 -9 -6 -6 -5 ---------- Run | Yrd Mat Sub Rec Scr Fac Ext Fac Machines Disabled 37 | . . 2 . . . 7 28 Max in Single Turn 5 | . . 1 . . . 1 5 Garrison Access 1 | . . . . . . . 1 Energy Cycler 1 | . . . . . . 1 . Machines Repaired . | . . . . . . . . Machines Dismantled . | . . . . . . . . Machines Sabotaged . | . . . . . . . . Overloaded Fab Kills . | . . . . . . . . Hacking | -11 -10 -10 -9 -9 -6 -6 -5 --------- Run | Yrd Mat Sub Rec Scr Fac Ext Fac Machines Accessed 44 | . 9 . 12 6 4 4 9 Terminals 23 | . 8 . 5 . 2 4 4 Fabricators 1 | . . . . . . . 1 Repair Stations 2 | . 1 . . . . . 1 Recycling Units 6 | . . . 5 . . . 1 Scanalyzers 3 | . . . . . 2 . 1 Garrison Access 1 | . . . . . . . 1 Total Hacks 139 | . 24 . 34 32 16 9 24 Successful 101 | . 14 . 28 32 11 4 12 Failed 38 | . 10 . 6 . 5 5 12 Catastrophic 3 | . 1 . 1 . . . 1 Database Lockouts . | . . . . . . . . Manual 56 | . 20 . 17 . 4 3 12 Terminals 67 | . 22 . 18 . 4 9 14 Fabricators 2 | . . . . . . . 2 Repair Stations 4 | . 2 . . . . . 2 Recycling Units 11 | . . . 10 . . . 1 Scanalyzers 16 | . . . . . 12 . 4 Garrison Access 1 | . . . . . . . 1 Terminal Hacks 54 | . 5 . 13 32 . 2 2 Record 29 | . . . 6 22 . 1 . Part Schematic 4 | . . . 4 . . . . Robot Analysis 11 | . 2 . . 9 . . . Prototype ID Bank 2 | . . . 2 . . . . Open Door 1 | . . . . . . 1 . Open DSF 1 | . . . . . . . 1 Branch Access Points 1 | . . . 1 . . . . Terminal Index 1 | . 1 . . . . . . Alert Level 1 | . 1 . . . . . . Unreport Threat 1 | . 1 . . . . . . Recall Extermination 1 | . . . . . . . 1 Derelict Proto ID Bank 1 | . . . . 1 . . . Fabricator Hacks 2 | . . . . . . . 2 Load Schematic 1 | . . . . . . . 1 Build 1 | . . . . . . . 1 Repair Station Hacks 4 | . 2 . . . . . 2 Scan Component 2 | . 1 . . . . . 1 Repair 2 | . 1 . . . . . 1 Recycling Unit Hacks . | . . . . . . . . Scanalyzer 11 | . . . . . 9 . 2 Insert Component 6 | . . . . . 5 . 1 Analyze 5 | . . . . . 4 . 1 Garrison Access Hacks 1 | . . . . . . . 1 Seal Access 1 | . . . . . . . 1 Unauthorized Hacks 24 | . 7 . 10 . 2 2 3 Terminals 18 | . 7 . 5 . 2 2 2 Botnet 18 | . 7 . 5 . 2 2 2 Fabricators . | . . . . . . . . Repair Stations 1 | . . . . . . . 1 Recycling Units 5 | . . . 5 . . . . Tunnel 5 | . . . 5 . . . . Fedlink 1 | . . . . . . . 1 Scanalyzers . | . . . . . . . . Garrison Access . | . . . . . . . . Data Cores Recovered . | . . . . . . . . Used . | . . . . . . . . Hacking Detections 27 | . 8 . 5 . 4 4 6 Full Trace Events 3 | . . . . . . 2 1 Feedback Events . | . . . . . . . . Feedback Blocked . | . . . . . . . . Robot Schematics Acquired . | . . . . . . . . Robots Built . | . . . . . . . . Authchips . | . . . . . . . . Time . | . . . . . . . . Total Robot Build Rating . | . . . . . . . . Part Schematics Acquired 9 | . . . 4 . 4 . 1 Parts Built 2 | . . . . . . . 2 Authchips . | . . . . . . . . Time 42 | . . . . . . . 42 Total Part Build Rating 8 | . . . . . . . 8 Parts Repaired 1 | . 1 . . . . . . Time 88 | . 26 . . . . . 62 Parts Recycled . | . . . . . . . . Recycled Matter . | . . . . . . . . Retrieved Matter . | . . . . . . . . Retrieved Components . | . . . . . . . . Parts Scanalyzed 5 | . . . . . 4 . 1 Part Schematics Acquired 5 | . . . . . 4 . 1 Parts Damaged . | . . . . . . . . Bothacking | -11 -10 -10 -9 -9 -6 -6 -5 ------------ Run | Yrd Mat Sub Rec Scr Fac Ext Fac Used RIF Installer . | . . . . . . . . Robots Hacked . | . . . . . . . . Non-combat . | . . . . . . . . Combat . | . . . . . . . . Robot Hacks Applied . | . . . . . . . . Relay Couplers Released . | . . . . . . . . Fabnet Peak Effective % . | . . . . . . . . Robots Rewired 20 | . . . . . . 20 . Allies Hacked . | . . . . . . . . Hacks Repelled . | . . . . . . . . Allies | -11 -10 -10 -9 -9 -6 -6 -5 -------- Run | Yrd Mat Sub Rec Scr Fac Ext Fac Total Allies 25 | . . . . . . 25 . Largest Group 20 | . . . . . . 20 20 Highest-Rated Group 602 | . . . . . . 602 602 Highest-Rated Ally 39 | . . . . . . 39 39 Total Orders . | . . . . . . . . Ally Attacks 237 | . . . . . . 150 87 Total Damage 3766 | . . . . . . 2192 1574 Kills 37 | . . . . . . 23 14 Allies Corrupted 3 | . . . . . . . 3 Allies Melted . | . . . . . . . . Intel | -11 -10 -10 -9 -9 -6 -6 -5 ------- Run | Yrd Mat Sub Rec Scr Fac Ext Fac Robot Analysis Total 11 | . 2 . . 9 . . . Derelict Logs Recovered 1 | . . 1 . . . . . Drone Launches . | . . . . . . . . Drone Recoveries . | . . . . . . . . Exploration | -11 -10 -10 -9 -9 -6 -6 -5 ------------- Run | Yrd Mat Sub Rec Scr Fac Ext Fac Turns Passed 13812 | 3 1869 1859 783 5169 656 2082 1391 Spaces Moved 6565 | 3 859 968 461 2451 216 864 743 Core 39 | . . . . . . 14 25 Treads 3716 | . . 526 461 2451 216 62 . Legs 2810 | 3 859 442 . . . 788 718 Wheels . | . . . . . . . . Hover . | . . . . . . . . Flight . | . . . . . . . . Fastest Speed 50 | 120 120 160 160 160 240 115 50 Average Speed 179 | 120 198 173 160 198 246 156 119 Slowest Speed 1050 | 120 260 190 160 240 320 1050 188 Overloaded Moves . | . . . . . . . . Propulsion Burnouts . | . . . . . . . . Robots Hopped . | . . . . . . . . Cave-ins Triggered 1 | . . . . . . 1 . Exploration Rate (%) 56 | 2 98 75 76 95 4 82 19 Regions Visited 7 Branch Regions 4 Pre-discovered Areas 5 | . . . 5 . . . . Known Exits Taken . | . . . . . . . . Unknown Exits Taken 7 | 1 1 1 1 1 1 1 . Scrap Searched 7 | . . 2 . 5 . . . Spaces Dug 11 | . . . . . . 4 7 Terrain Destroyed 195 | . . . . . 10 31 154 Melee 7 | . . . . . . . 7 Projectile 44 | . . . . . 10 23 11 AOE 144 | . . . . . . 8 136 Terrain Rammed . | . . . . . . . . Walls Destroyed . | . . . . . . . . Machines Disabled . | . . . . . . . . Actions | -11 -10 -10 -9 -9 -6 -6 -5 --------- Run | Yrd Mat Sub Rec Scr Fac Ext Fac Total 7943 | 2 964 1046 507 2762 274 1307 1081 Wait 564 | . 36 . 47 252 . 61 168 Move 6558 | 2 858 967 460 2450 215 863 743 Hop . | . . . . . . . . Pick Up 82 | . 12 3 . 25 8 23 11 Fast Attach 19 | . 3 . . 1 1 8 6 Attach 50 | . . 4 . 1 11 12 22 Detach . | . . . . . . . . Swap 88 | . 11 6 . 9 3 34 25 Drop 90 | . 9 4 . 23 3 35 16 Fire 301 | . 35 62 . . 33 88 83 Melee 84 | . . . . . . 77 7 Ram . | . . . . . . . . Kick 1 | . . . . . . 1 . Crush . | . . . . . . . . Escape Stasis . | . . . . . . . . Rewire 105 | . . . . . . 105 . Trap 1 | . . . . 1 . . . Miscellaneous . | . . . . . . . . Route ------- -11/Scrapyard -10/Materials (discovered 5 exits: [*Mat x3] / [*Min] / [*Sub]) -10/Subcaves (discovered 2 exits: [*Mat] / *Rec) -9/Recycling -9/Scraptown (discovered 2 exits: *Fac x2) -6/Factory (discovered 3 exits: *Fac x2 / *Ext) -6/Extension (discovered 3 exits: *Fac x2 / [*Cet]) -5/Factory History --------- Turn | Location | Event 1 | -11/Scrapyard | Discovered new exit (range 2) 4 | -11/Scrapyard | Entered Materials 297 | -10/Materials | Repaired Aluminum Leg 318 | -10/Materials | Build established: Mutant 555 | -10/Materials | Discovered new exit (range 12) 759 | -10/Materials | Discovered new exit (range 6) 804 | -10/Materials | Derelicts attacked the area 1004 | -10/Materials | Discovered new exit (range 7) 1162 | -10/Materials | Discovered new exit (range 15) 1599 | -10/Materials | Discovered new exit (range 9) 1873 | -10/Materials | Entered Subcaves 2331 | -10/Subcaves | Disturbed a concealed Subdweller 2738 | -10/Subcaves | Ambushed by Subdweller buried in earth 2792 | -10/Subcaves | A swath of the cavern ceiling suddenly collapsed 2974 | -10/Subcaves | Core integrity fell below 50% 3012 | -10/Subcaves | Learned Materials security intel 3146 | -10/Subcaves | Shifting Twisted Machinery released Battle Cannon 3151 | -10/Subcaves | Shifting Twisted Machinery released Mak. Kinetic Plating 3270 | -10/Subcaves | Shifting Twisted Machinery released Sub. Monowheel 3273 | -10/Subcaves | Discovered new exit (range 12) 3427 | -10/Subcaves | Shifting Twisted Machinery released Sub. Power Source 3436 | -10/Subcaves | Shifting Twisted Machinery released Riot Gun 3674 | -10/Subcaves | Discovered new exit (range 15) 3732 | -10/Subcaves | Entered Recycling 3733 | -9/Recycling | Met a Zionite searching for Scraptown 4456 | -9/Recycling | Scanned before Scraplab entrance 4482 | -9/Recycling | Entered Scraplab 4511 | -9/Recycling | Discovered new exit (range 3) 4515 | -9/Recycling | Entered Scraptown 4804 | -9/Scraptown | Visited UFD Registry 4804 | -9/Scraptown | Registered with UFD as "Kinetieater" 4841 | -9/Scraptown | Visited Shadow of the Wyrm 4889 | -9/Scraptown | Visited Observation Area 4992 | -9/Scraptown | Visited Cave Peace 5060 | -9/Scraptown | Visited Junk Repository 5104 | -9/Scraptown | Heard Great Nut preacher, LISTEN AND RECITE! 5126 | -9/Scraptown | Visited Spacefarers 5211 | -9/Scraptown | Visited Fellowship of the Rings 5883 | -9/Scraptown | Discovered new exit (range 5) 6251 | -9/Scraptown | Visited Derelict Rescue Squad 6261 | -9/Scraptown | Found DRS Beacon 6305 | -9/Scraptown | Visited LU-1G1's Boring Crew 6382 | -9/Scraptown | Visited Science Guys 6456 | -9/Scraptown | Warned about trapping Scraptown 6718 | -9/Scraptown | Visited DA-N13 Charitable Foundation 6749 | -9/Scraptown | Found DCF Scrap (29 items) 7040 | -9/Scraptown | Build established: Derelict-Mutant 7409 | -9/Scraptown | Visited Analyses Database 7589 | -9/Scraptown | Visited Scrapoid Pod Storage 7610 | -9/Scraptown | Visited Junk Cannon Lab 7638 | -9/Scraptown | Found Prototype Special Weapon 7640 | -9/Scraptown | Identified Junk Cannon 7944 | -9/Scraptown | Visited Abandonware Association 7961 | -9/Scraptown | Learned abandonware demo "OVRCLOCK.EXE" 7980 | -9/Scraptown | Learned abandonware demo "ERRANTS.EXE" 7980 | -9/Scraptown | Learned abandonware demo "REBOOT5.EXE" 8045 | -9/Scraptown | Visited Chapter 10 8131 | -9/Scraptown | Visited Supply Room 8952 | -9/Scraptown | Discovered new exit (range 3) 9684 | -9/Scraptown | Entered Factory 9684 | -6/Factory | Evolved 8 slots: Power x1, Propulsion x4, Utility x2, Weapon x1 9806 | -6/Factory | Discovered new exit (range 14) 9838 | -6/Factory | Discovered new exit (range 9) 9985 | -6/Factory | Build established: Derelict-Tank 10316 | -6/Factory | Discovered new exit (range 11) 10340 | -6/Factory | Entered Extension 10354 | -6/Extension | Disrupted transfer network 10774 | -6/Extension | Lost 5 parts (2p2n1u) 10785 | -6/Extension | Build established: Derelict-Mutant 10928 | -6/Extension | Lost 10 parts (2p4n2u2w) 11385 | -6/Extension | Energy Cycler disabled 11385 | -6/Extension | Rescued a captive Derelict 11385 | -6/Extension | Rescued a captive Derelict 11385 | -6/Extension | Rescued a captive Derelict 11387 | -6/Extension | Rescued a captive Derelict 11388 | -6/Extension | Rescued a captive Derelict 11391 | -6/Extension | Rescued a captive Derelict 11391 | -6/Extension | Rescued a captive Derelict 11392 | -6/Extension | Rescued a captive Derelict 11435 | -6/Extension | Build established: Scavenger-Mutant 11647 | -6/Extension | Spotted B-75 Beast 11663 | -6/Extension | Crushed by falling debris 11705 | -6/Extension | Discovered new exit (range 16) 11717 | -6/Extension | Extracted ID and sensor layout for unrecognized location from A7's data core 12162 | -6/Extension | Discovered new exit (range 10) 12163 | -6/Extension | Discovered new exit (range 6) 12241 | -6/Extension | Build established: Commander-Mutant 12422 | -6/Extension | Entered Factory 12422 | -5/Factory | Accompanied by 20 allies 12422 | -5/Factory | Evolved 2 slots: Propulsion x1, Utility x1 12667 | -5/Factory | Lost 3 allies 13034 | -5/Factory | Lost 3 allies 13131 | -5/Factory | Fabricated Imp. Cooling System (x2) 13190 | -5/Factory | Build established: Scavenger-Mutant 13271 | -5/Factory | Lost 7 allies 13330 | -5/Factory | Spotted B-75 Beast 13501 | -5/Factory | Lost 3 parts (2n1u) 13503 | -5/Factory | Destroyed 7 combat bots 13622 | -5/Factory | First assault squad dispatched 13639 | -5/Factory | Lost 4 parts (1n2u1w) 13790 | -5/Factory | Core integrity fell below 50% 13800 | -5/Factory | System corruption reached 10% 13801 | -5/Factory | Released all parts (7) 13804 | -5/Factory | Core integrity fell below 20% 13813 | -5/Factory | Destroyed by H-66 Slayer with Gauss Rifle Last Messages --------------- 13798_ Broken Hvy. Laser destroyed. 13799_ Overheating: System interference. 13799_ Hvy. Particle Cannon temporarily disabled. 13801_ Released Terrain Scan Processor. 13801_ Released System Guard. 13801_ Released Huge Storage Unit. 13801_ Released Lgt. Fission Core. 13801_ Released Adv. Heat Sink. 13801_ Released Energy Well. 13801_ Released Hvy. Particle Cannon. 13802_ Overheating: Energy bleed (-15). 13803_ Acquired 18 matter. 13808_ R-10 Processor collects Hvy. Laser. 13810_ Critical hit (Burn: +50). 13811_ R-10 Processor collects Lgt. Treads. 13813_ System corrupted: Matter fused (-8). 13813_ G-67 Veteran destroyed. 13813_ Penetrated by Slug. [Achievement: I Think I Know What's Going On] Map ----- +----------------------------------------------------+ | # " +?????????????????????? | | # #?????????????????????? | | # ! #?????????????????????? | | # ####### ##?????????????????????? | | # #??????????????????????????????? | | #########+##??????????????????????????????? | | #???????? ???????????????????????????????? | | #?????????" ??????????????????????????????? | | #?????????" "?????????????????????????????? | | #?????????? "?????????????????????????????? | | #???????????? ????????????????????????????? | | #?????????????????????????????????????????? | | ##############?????######+???????????????????????? | | # #????? ???????????????????????? | | # #????"" ???????????????????????? | | # #????"" h ???????????????????????? | | # ! #????"" ???????????????????????? | | # #???""" #??????????????????????? | | # #??"""" % #??##?#####????????????? | | # #???" " #??# ## ####?????????? | | / #???""" #??## ###???????? | | # #???""" #?##"" ""###?????? | | # #?????" #?# " #?????? | | # #??????? #?##" #?????? | | # #????????? #### ###???? | | ######+#+##########+#####@# #???? | | ! #???? | | ?### R ##??? | | ???# """" """" % [* #??? | | ???# """" """" % %%% / %= #??? | | ???# """" """" % % * " #??? | | ???# """" " "" ##### |/! " #??? | | ???# """" """" """ # %*!!] " ##??? | | ??# """" """" F" %#####;p&|* " #???? | | # % """ #####%p !; ;;;;"""""###???? | | + % % % " # ## #### #?????? | | # !* + !!! ## #???##?????? | | # # !!! ## #??????????? | | ###+######+#### # !! ## #??????????? | | ????# ! [% # # ! ## #??????????? | | ????#"" # # ## #??????????? | | ????#"F # # + #??????????? | | ????#" %# ################??????????? | | ????# + ##"###########????????????? | | ????# # % %# #????????????? | | ???#" # # #????????????? | | ???#" # # #????????????? | | ???#" # # #????????????? | | ???#" [ # # """" """" #????????????? | | ???#" # % # """" """" #????????????? | +----------------------------------------------------+ Best States ------------- Heat Dissipation 94 Energy Generation 34 Energy Capacity 510 Matter Stores 300 Matter Capacity 500 Sight Range 16 Terrain Scan Density 85 Corruption Containment 8 Armor Coverage 225 Resistance: KI 20 Resistance: TH 20 Resistance: EX 20 Resistance: EM 20 Resistance: I 20 Resistance: S 20 Resistance: P 20 Core Shielding 30 Weapon Shielding 33 Evasion (%) 55 Target Analysis 6 Recoil Reduction 3 Offensive Hacking 10 Item Schematics ----------------- Imp. Cooling System | -9/Recycling | Hacked Mace | -9/Recycling | Hacked Lgt. Nuclear Core | -9/Recycling | Hacked Particle Gun | -9/Recycling | Hacked Lrn. Missile Launcher | -6/Factory | Scanalyzed Energy Well | -6/Factory | Scanalyzed CPS Tube | -6/Factory | Scanalyzed Huge Storage Unit | -6/Factory | Scanalyzed System Guard | -5/Factory | Scanalyzed Robot Schematics ------------------ None Fabricated ------------ Imp. Cooling System | x2 | -5/Factory Alien Tech Used ----------------- None Achievements -------------- I Think I Know What's Going On Challenges ------------ None Game ------ Seed MetaHardcellMask Manual? 0 Play Time 01:26:04 Cumulative 135.2 hours Start 2024.10.01 @ 06:36:47 End 2024.10.01 @ 08:27:45 Sessions 1 Manual Loads 0 Difficulty Adventurer Special Mode None Game No. 185 Rogue 0 Adventurer 185 Explorer 0 Win Type - Total 0 Types 0/0/0/0/0/0/0/0/0 Lore% 50 Gallery% 51 Achievement% 39 Wizard Run 0 Options --------- Layout 2 ASCII 0 Keyboard 0 Movement Mouse Keybinds 0 Fullscreen 2 Font 48/Smallcaps Map View 50x44 Zoom Use 0% Tactical HUD 1 Map Filters NONE Filters NONE Steam 1 RUN: d080a5da-a5fc-4278-8178-9f5cec04ae68